Cogmind - Beta 13 @@@ ROGUE MODE // 2024.05.12 @ 02:26:13 Player: Sinner6 Result: Destroyed by Y-45 Defender with Heavy Assault Rifle Performance ------------- Evolutions (1) 500 Regions Visited (2) 400 Robots Destroyed (30) 150 Value Destroyed (812) 812 Prototype IDs (1) 20 Alien Tech Used (0) 0 Bonus (0) 0 TOTAL SCORE: 1882 Bonus ------- None Cogmind --------- Core Integrity 0/400 Matter 278/300 Energy 56/100 System Corruption 12% Temperature Cool (11) Movement Treading (160) Location -9/Materials Parts ------- > --- POWER (1) -------- (None) > --- PROPULSION (2) --- Light Treads Light Treads > --- UTILITY (4) ------ Heat Sink Small Storage Unit Weight Redist. System Hardened Light Armor Plating > --- WEAPON (2) ------- Improved EM Shotgun Light Cannon > --- INVENTORY (8) ---- Ion Engine Light Treads Aluminum Leg High-capacity Battery (250) Light Armor Plating Light Armor Plating Improved EM Shotgun Hammer Peak State ------------ > --- POWER ------------ Ion Engine > --- PROPULSION ------- Light Treads Light Treads > --- UTILITY ---------- Heat Sink Small Storage Unit Weight Redist. System Hardened Light Armor Plating > --- WEAPON ----------- Improved EM Shotgun Light Cannon > --- INVENTORY -------- Light Treads Aluminum Leg Heat Sink High-capacity Battery Light Armor Plating Light Armor Plating Improved EM Shotgun Hammer [Rating: 14] Favorites ----------- Power Ion Engine Engine Ion Engine Propulsion Light Treads Treads Light Treads Utility Small Storage Unit Device Heat Sink Storage Small Storage Unit Processor Visual Processing Unit Protection Light Armor Plating Weapon Medium Laser Energy Gun Medium Laser Ballistic Gun Light Assault Rifle Ballistic Cannon Light Cannon Build | -11 -10 -9 ------- Run | Yrd Mat Mat Slots Evolved 2 | . . 2 Power . | . . . Propulsion . | . . . Utility 2 | . . 2 Weapon . | . . . Parts Attached 33 | 6 5 22 Power 4 | 1 . 3 Engine 4 | 1 . 3 Core . | . . . Reactor . | . . . Propulsion 8 | 2 1 5 Treads 8 | 2 1 5 Leg . | . . . Wheel . | . . . Hover . | . . . Flight . | . . . Utility 13 | 1 3 9 Device 6 | . 1 5 Storage 1 | 1 . . Processor 1 | . . 1 Hackware . | . . . Protection 5 | . 2 3 Artifact . | . . . Weapon 8 | 2 1 5 Energy Gun 3 | 1 . 2 Energy Cannon . | . . . Ballistic Gun 3 | 1 1 1 Ballistic Cannon 2 | . . 2 Launcher . | . . . Special Weapon . | . . . Impact Weapon . | . . . Slashing Weapon . | . . . Piercing Weapon . | . . . Special Melee Weapon . | . . . Unidentified Prototypes 1 | . . 1 Parts Lost 11 | . . 11 Power 3 | . . 3 Propulsion 2 | . . 2 Utility 3 | . . 3 Weapon 3 | . . 3 Highest Loss Streak 10 | . . 10 To Critical Strikes . | . . . Average Slot Usage (%) 94 | . 96 92 Engine 12 | . 14 9 Treads 24 | . 27 20 Device 8 | . 2 15 Storage 12 | . 14 11 Processor 1 | . . 3 Protection 8 | . 8 9 Energy Gun 13 | . 14 12 Ballistic Gun 8 | . 14 2 Ballistic Cannon 3 | . . 7 Naked Turns . | . . . Heaviest Build 22 | 13 16 22 Greatest Support 46 | 40 40 46 Greatest Overweight (x) 2 | . . 2 Average Overweight (x) . | . . . Largest Inventory Capacity 8 | 8 8 8 Average Capacity 7 | 7 8 8 Most Carried 8 | 6 8 8 Average Carried 7 | 3 7 7 Final Capacity 8 | 8 8 8 Final Carried 8 | 6 8 8 Class Distribution -------------------- 72% | Mutant 27% | Scavenger-Mutant Dominant Class ---------------- Mutant | -10/Materials Scavenger-Mutant | -9/Materials Resources | -11 -10 -9 ----------- Run | Yrd Mat Mat Matter Collected 641 | 206 134 301 Remotely . | . . . Salvage Created 1097 | . 307 790 Parts 69 | . 16 53 Haulers Intercepted 3 | . 2 1 Recyclers Shooed 1 | . . 1 Parts Field Recycled . | . . . Retrieved Matter . | . . . Parts Self-Destructed . | . . . Prevented . | . . . Kills | -11 -10 -9 ------- Run | Yrd Mat Mat Combat Hostiles Destroyed 26 | . 7 19 Melee 1 | . 1 . Guns 16 | . 6 10 Cannons 7 | . . 7 AOE 2 | . . 2 Classes Destroyed 6 | . 3 3 Builder 1 | . . 1 Hauler 3 | . 2 1 Swarmer 6 | . 3 3 Grunt 16 | . 4 12 Brawler 1 | . . 1 Sentry 3 | . . 3 Best Kill Streak 8 | . 3 8 Combat Bots Only 7 | . 3 7 Max Kills in Single Turn 2 | . 1 2 Gunslinging . | . . . Exploded 1 | . . 1 Melee 1 | . 1 . Uniques/NPCs Destroyed . | . . . Combat | -11 -10 -9 -------- Run | Yrd Mat Mat Hostile Shots Fired 213 | . 37 176 Missed 41 | . 9 32 Damage Taken 2141 | . 319 1822 Core 435 | . 33 402 Absorbed by Shields . | . . . Regen/Repaired (Parts) 275 | . 98 177 Core Remaining (%) 93 | 100 86 . Volleys Fired 76 | . 23 53 Largest 2 | . 2 2 Hottest 106 | . 70 106 Shots Fired 137 | . 46 91 Gun 111 | . 46 65 Cannon 26 | . . 26 Launcher . | . . . Special . | . . . Kinetic 66 | . 23 43 Thermal 49 | . 23 26 Explosive . | . . . Electromagnetic 22 | . . 22 Robot Hit Streak 11 | . 4 11 Robot Miss Streak 5 | . 4 5 Penetration Max . | . . . Secondary Targets 6 | . 4 2 Max Gunslinging Chain 1 | . 1 1 Shots Hit Robots 85 | . 23 62 Core Hits 53 | . 15 38 Critical Kills . | . . . Critical Parts Destroyed . | . . . Critical Strikes 6 | . 2 4 Burn 4 | . 2 2 Blast 2 | . . 2 Melee Attacks . | . . . Impact . | . . . Slashing . | . . . Piercing . | . . . Sneak Attacks . | . . . Combat Hostiles . | . . . Follow-up Attacks . | . . . Damage Inflicted 1373 | . 265 1108 Guns 1004 | . 259 745 Cannons 240 | . . 240 Explosions 122 | . . 122 Melee . | . . . Ramming 7 | . 6 1 Kinetic 416 | . 75 341 Thermal 608 | . 184 424 Explosive . | . . . Electromagnetic 342 | . . 342 Impact . | . . . Slashing . | . . . Piercing . | . . . Highest Corruption 12 | . 2 12 Average Corruption 8 | . 1 11 Corruption Purged . | . . . Corruption Blocked . | . . . Effects 26 | . 4 22 Message Errors 8 | . 2 6 Matter Fused 4 | . 2 2 Heat Flow Errors 5 | . . 5 Energy Discharges 2 | . . 2 Data Loss (minor) 4 | . . 4 Weapon Failures 3 | . . 3 Overload Shots . | . . . Overflow Damage . | . . . Projectiles . | . . . Explosions . | . . . Melee . | . . . Knockbacks 1 | . . 1 Impact . | . . . Kinetic 1 | . . 1 Secondary . | . . . Self-Inflicted Damage . | . . . Shots . | . . . Rammed 8 | . 5 3 Targets Rammed 9 | . 6 3 Kicked . | . . . Crushed 1 | . 1 . Highest Temperature 384 | . 171 384 Average Temperature 119 | . 43 150 Received Heat Transfer 789 | . 108 681 Effects 3 | . . 3 Shutdowns 2 | . . 2 Interference 1 | . . 1 Siege Activations . | . . . Robots Corrupted . | . . . Combat Hostiles . | . . . Parts Fried 1 | . . 1 Impact Corruptions . | . . . Robots Melted . | . . . Combat Hostiles . | . . . Parts Melted 5 | . 2 3 Heat Transferred 1852 | . 703 1149 Parts Sabotaged . | . . . Parts Stolen . | . . . Parts Stripped . | . . . Power Chain Reactions 2 | . . 2 Alert | -11 -10 -9 ------- Run | Yrd Mat Mat Peak Influence 301 | . 143 301 Initial 27 | . . 27 Average 69 | . 44 105 Maximum Alert Level 1 | . . 1 Low Security (%) 94 | 100 100 87 Level 1 5 | . . 12 Level 2 . | . . . Level 3 . | . . . Level 4 . | . . . Level 5 . | . . . High Security . | . . . Max Security . | . . . Squads Dispatched 3 | . 1 2 Investigation 2 | . . 2 Extermination . | . . . Reinforcement 1 | . 1 . Assault . | . . . Garrison . | . . . Intercept . | . . . Searches Triggered . | . . . Construction Impeded . | . . . Haulers Reinforced . | . . . Active Scanning Responses . | . . . Cargo Convoy Interrupts . | . . . Stealth | -11 -10 -9 --------- Run | Yrd Mat Mat Distress Signals 3 | . 1 2 Communications Jammed . | . . . Distress Signals . | . . . Times Spotted 36 | . 9 27 Peak Tracking Total 10 | . 3 10 Tactical Retreats 2 | . . 2 Traps | -11 -10 -9 ------- Run | Yrd Mat Mat Traps Triggered 3 | . 3 . Indirectly . | . . . Trap Hack Attempts . | . . . Triggered . | . . . Disarmed . | . . . Reprogrammed . | . . . Reused . | . . . Traps Extracted . | . . . Installed . | . . . Triggered . | . . . Machines | -11 -10 -9 ---------- Run | Yrd Mat Mat Machines Disabled . | . . . Max in Single Turn . | . . . Machines Repaired . | . . . Machines Dismantled . | . . . Machines Sabotaged . | . . . Overloaded Fab Kills . | . . . Hacking | -11 -10 -9 --------- Run | Yrd Mat Mat Machines Accessed 7 | . 4 3 Terminals 4 | . 2 2 Fabricators . | . . . Repair Stations 2 | . 1 1 Recycling Units 1 | . 1 . Scanalyzers . | . . . Garrison Access . | . . . Total Hacks 22 | . 7 15 Successful 14 | . 4 10 Failed 8 | . 3 5 Catastrophic . | . . . Database Lockouts . | . . . Manual 9 | . 2 7 Terminals 9 | . 2 7 Fabricators . | . . . Repair Stations 12 | . 4 8 Recycling Units 1 | . 1 . Scanalyzers . | . . . Garrison Access . | . . . Terminal Hacks 4 | . 1 3 Branch Access Points 1 | . . 1 Unreport Threat 1 | . . 1 Zone Layout 2 | . 1 1 Fabricator Hacks . | . . . Repair Station Hacks 8 | . 2 6 Scan Component 4 | . 1 3 Repair 4 | . 1 3 Recycling Unit Hacks 1 | . 1 . Report Inventory 1 | . 1 . Scanalyzer . | . . . Garrison Access Hacks . | . . . Unauthorized Hacks 1 | . . 1 Terminals 1 | . . 1 Botnet 1 | . . 1 Fabricators . | . . . Repair Stations . | . . . Recycling Units . | . . . Scanalyzers . | . . . Garrison Access . | . . . Data Cores Recovered . | . . . Used . | . . . Hacking Detections 6 | . 3 3 Full Trace Events 3 | . 1 2 Feedback Events . | . . . Feedback Blocked . | . . . Robot Schematics Acquired . | . . . Robots Built . | . . . Authchips . | . . . Time . | . . . Total Robot Build Rating . | . . . Part Schematics Acquired . | . . . Parts Built . | . . . Authchips . | . . . Time . | . . . Total Part Build Rating . | . . . Parts Repaired 4 | . 1 3 Time 104 | . 26 78 Parts Recycled . | . . . Recycled Matter . | . . . Retrieved Matter . | . . . Retrieved Components . | . . . Parts Scanalyzed . | . . . Part Schematics Acquired . | . . . Parts Damaged . | . . . Bothacking | -11 -10 -9 ------------ Run | Yrd Mat Mat Used RIF Installer . | . . . Robots Hacked . | . . . Non-combat . | . . . Combat . | . . . Robot Hacks Applied . | . . . Relay Couplers Released . | . . . Fabnet Peak Effective % . | . . . Robots Rewired . | . . . Allies Hacked . | . . . Hacks Repelled . | . . . Allies | -11 -10 -9 -------- Run | Yrd Mat Mat Total Allies . | . . . Largest Group . | . . . Highest-Rated Group . | . . . Highest-Rated Ally . | . . . Total Orders . | . . . Ally Attacks . | . . . Total Damage . | . . . Kills . | . . . Allies Corrupted . | . . . Allies Melted . | . . . Intel | -11 -10 -9 ------- Run | Yrd Mat Mat Robot Analysis Total . | . . . Derelict Logs Recovered . | . . . Drone Launches . | . . . Drone Recoveries . | . . . Exploration | -11 -10 -9 ------------- Run | Yrd Mat Mat Turns Passed 1464 | 76 743 645 Spaces Moved 632 | 41 368 223 Core 5 | 3 . 2 Treads 627 | 38 368 221 Legs . | . . . Wheels . | . . . Hover . | . . . Flight . | . . . Fastest Speed 50 | 50 160 150 Average Speed 159 | 151 160 159 Slowest Speed 160 | 160 160 160 Overloaded Moves . | . . . Propulsion Burnouts . | . . . Robots Hopped . | . . . Cave-ins Triggered . | . . . Exploration Rate (%) 23 | 4 42 25 Regions Visited 2 Branch Regions . Pre-discovered Areas . | . . . Known Exits Taken . | . . . Unknown Exits Taken 2 | 1 1 . Scrap Searched . | . . . Spaces Dug . | . . . Terrain Destroyed 14 | . . 14 Melee . | . . . Projectile . | . . . AOE 14 | . . 14 Terrain Rammed . | . . . Walls Destroyed . | . . . Machines Disabled . | . . . Actions | -11 -10 -9 --------- Run | Yrd Mat Mat Total 952 | 52 482 418 Wait 163 | . 63 100 Move 630 | 40 367 223 Hop . | . . . Pick Up 24 | 6 9 9 Fast Attach 18 | 6 3 9 Attach 8 | . . 8 Detach 2 | . 1 1 Swap 7 | . 2 5 Drop 15 | . 8 7 Fire 76 | . 23 53 Melee . | . . . Ram . | . . . Kick . | . . . Crush 9 | . 6 3 Escape Stasis . | . . . Rewire . | . . . Trap . | . . . Miscellaneous . | . . . Route ------- -11/Scrapyard -10/Materials (discovered 2 exits: *Mat / [*Min]) -9/Materials (discovered 3 exits: [*Mat] / Min x2) History --------- Turn | Location | Event 11 | -11/Scrapyard | Discovered new exit (range 15) 77 | -11/Scrapyard | Entered Materials 235 | -10/Materials | Discovered new exit (range 5) 309 | -10/Materials | Build established: Mutant 416 | -10/Materials | Repaired Lgt. Treads 431 | -10/Materials | Discovered new exit (range 10) 820 | -10/Materials | Entered another Materials area 820 | -9/Materials | Evolved 2 slots: Utility x2 834 | -9/Materials | Identified exit to Mines 970 | -9/Materials | Discovered new exit (range 18) 1038 | -9/Materials | System corruption reached 10% 1067 | -9/Materials | Core integrity fell below 50% 1072 | -9/Materials | Destroyed 7 combat bots 1091 | -9/Materials | Lost 10 parts (2p2n3u3w) 1258 | -9/Materials | Repaired Ion Engine 1288 | -9/Materials | Repaired Lgt. Cannon 1316 | -9/Materials | Repaired Lgt. Treads 1377 | -9/Materials | Build established: Scavenger-Mutant 1442 | -9/Materials | Core integrity fell below 20% 1465 | -9/Materials | Destroyed by Y-45 Defender with Heavy Assault Rifle Last Messages --------------- 01404_ K-01 Serf collects debris. 01408_ U-05 Engineer lays Concrete. 01410_ K-01 Serf collects debris. 01410_ U-05 Engineer lays Concrete. 01412_ System corrupted: Heat flow error (+131). 01412_ The unstable cave ceiling collapses. 01412_ U-05 Engineer lays Concrete. 01414_ Acquired 9 matter. 01414_ U-05 Engineer lays Concrete. 01416_ K-01 Serf destroyed. 01416_ U-05 Engineer lays Concrete. 01431_ System corrupted: Heat flow error (+195). 01439_ System corrupted: Lgt. Cannon jammed. 01447_ System corrupted: Energy discharge (-44). 01453_ Slammed into Y-45 Defender. 01455_ U-05 Engineer builds a Door. 01456_ Slammed into Y-45 Defender. 01458_ Heat Sink fried. 01458_ Y-45 Defender destroyed. 01459_ Ion Engine destroyed. Map ----- +----------------------------------------------------+ | # + ?????????????????????????????????? | | # """ # ?????????????????????????????????? | | # """ # ?????????????????????????????????? | | #????????????????????????????????????????????? | | #????????????????????????????????????????????? | | +????????????????????????????????????????????? | | #????????????????????????????????????????????? | | #???????? ????????????????????????????????? | | #???????# #???????????????????????????????? | | #???????# #???????????????????????????????? | | ######### #???????????????????????????????? | | #???????????????????????????????? | | ^ #???????????????????????????????? | | """ """ #???????????????????????????????? | | """ """ #???????????????????????????????? | | """ """ #???????????????????????????????? | | #???????????????????????????????? | | #???????????????????????????????? | | #???????????????????????????????? | | %#########???????????????????????? | | ! %! #???????????????????????? | | # =[=% #???????????????????????? | | #= = #???????????????????????? | | #[####### ######g#####????????????????????? | | #=#???# #?# #????????????????????? | | #%#???#### #### #?# % @ #????????????????????? | | #%#???? #?# #?# Y = #????????????????????? | | #=#?? #?# #?# ]]%[#????????????????????? | | #!#? """"""" #?# #?# ]][% #???????????????????? | | #=#? """"""" #?# #?# "" ] ##???????????????????? | | #%#??""""""" #?# #?# "T %#????????????????????? | | # #?????"""" #?? #?# "" #????????????????????? | | #!#????????? #?? ??# #????????????????????? | | # #????????? #?? ??##+#######????????????????????? | | ![#?????????##?? ????????????????????????????????? | | #+####?????????? ????????????????????????????????? | | #?????????? ????????????????????????????????? | | " " #?????????? ????????????????????????????????? | | "R" #???????????????????????????????????????????? | | """ #???????????????????????????????????????????? | | #???????????????????????????????????????????? | | ######???????????????????????????????????????????? | | ?????????????????????????????????????????????????? | | ?????????????????????????????????????????????????? | | ?????????????????????????????????????????????????? | | ?????????????????????????????????????????????????? | | ?????????????????????????????????????????????????? | | ?????????????????????????????????????????????????? | | ?????????????????????????????????????????????????? | | ?????????????????????????????????????????????????? | +----------------------------------------------------+ Best States ------------- Heat Dissipation 38 Energy Generation 10 Energy Capacity 250 Matter Stores 300 Matter Capacity 300 Sight Range 18 Terrain Scan Density 10 ECM Strength 1 Additional Mass Support 6 Armor Coverage 150 Propulsion Shielding 33 Evasion (%) 40 Recoil Reduction 2 Item Schematics ----------------- None Robot Schematics ------------------ None Fabricated ------------ Nothing Alien Tech Used ----------------- None Achievements -------------- root@ Challenges ------------ None Game ------ Seed ExoskeletonFusionSaw Manual? 0 Play Time 00:44:33 Cumulative 46.7 hours Start 2024.05.12 @ 01:36:07 End 2024.05.12 @ 02:26:13 Sessions 3 Manual Loads 0 Difficulty Rogue Special Mode None Game No. 10 Rogue 6 Adventurer 4 Explorer 0 Win Type - Total 0 Types 0/0/0/0/0/0/0/0/0 Lore% 16 Gallery% 25 Achievement% 20 Wizard Run 0 Options --------- Layout 1 ASCII 0 Keyboard 0 Movement Numpad Keybinds 0 Fullscreen 1 Font 24/Smallcaps Map View 50x35 Zoom Use 0% Tactical HUD 1 Map Filters NONE Filters NONE Steam SD RUN: 256b8b7d-42e9-42af-b2b3-e17bcdda1eaa